[Event "Early-Titled-Tuesday-Blitz-March-26-2024"]
[Site "Chess.com"]
[Date "2024.03.26"]
[Round "6"]
[White "gummigisla"]
[Black "teresin05"]
[Result "1/2-1/2"]
[WhiteElo "2427"]
[BlackElo "2293"]
[TimeControl "180+1"]
[EndTime "9:05:30 PDT"]
[Termination "Game drawn by repetition"]

1. d4 {[%clk 0:03:00.9]} 1... d5 {[%clk 0:02:56.2]} 2. c4 {[%clk 0:02:59.6]}
2... c6 {[%clk 0:02:56.1]} 3. Nf3 {[%clk 0:02:59.5]} 3... Nf6 {[%clk 0:02:56.3]}
4. Qc2 {[%clk 0:02:58.8]} 4... dxc4 {[%clk 0:02:54.3]} 5. Qxc4 {[%clk
0:02:58.2]} 5... Bf5 {[%clk 0:02:53.1]} 6. Bd2 {[%clk 0:02:54.8]} 6... e6 {[%clk
0:02:52.9]} 7. e3 {[%clk 0:02:52.9]} 7... Nbd7 {[%clk 0:02:53.1]} 8. a3 {[%clk
0:02:49]} 8... Bd6 {[%clk 0:02:53.5]} 9. h3 {[%clk 0:02:44.6]} 9... h6 {[%clk
0:02:53.1]} 10. Be2 {[%clk 0:02:44.6]} 10... O-O {[%clk 0:02:52.5]} 11. O-O
{[%clk 0:02:43.2]} 11... Nb6 {[%clk 0:02:50.2]} 12. Qc1 {[%clk 0:02:41.8]} 12...
Ne4 {[%clk 0:02:49.1]} 13. Be1 {[%clk 0:02:38.7]} 13... Rc8 {[%clk 0:02:47.1]}
14. b4 {[%clk 0:02:34.3]} 14... Qe7 {[%clk 0:02:42.2]} 15. Nbd2 {[%clk
0:02:28.9]} 15... Nd5 {[%clk 0:02:37.6]} 16. Nc4 {[%clk 0:02:21.8]} 16... Bb8
{[%clk 0:02:33.8]} 17. Nce5 {[%clk 0:02:07.1]} 17... f6 {[%clk 0:02:17.6]} 18.
Nd3 {[%clk 0:02:04.3]} 18... e5 {[%clk 0:01:47.2]} 19. dxe5 {[%clk 0:01:57]}
19... fxe5 {[%clk 0:01:48.1]} 20. Nc5 {[%clk 0:01:45.9]} 20... Nxc5 {[%clk
0:01:43.6]} 21. Qxc5 {[%clk 0:01:44.9]} 21... Qc7 {[%clk 0:01:41.5]} 22. Bc4
{[%clk 0:01:41]} 22... Rcd8 {[%clk 0:01:28.6]} 23. Rd1 {[%clk 0:01:33.4]} 23...
e4 {[%clk 0:01:06.7]} 24. Bxd5+ {[%clk 0:01:28.7]} 24... Rxd5 {[%clk 0:01:00.3]}
25. Rxd5 {[%clk 0:01:23.2]} 25... exf3 {[%clk 0:01:00.5]} 26. Qxf8+ {[%clk
0:01:16.5]} 26... Kxf8 {[%clk 0:00:57.8]} 27. Rxf5+ {[%clk 0:01:16.6]} 27... Kg8
{[%clk 0:00:57.9]} 28. g3 {[%clk 0:01:17]} 28... Qd7 {[%clk 0:00:52.2]} 29. Rxf3
{[%clk 0:01:16.3]} 29... Qxh3 {[%clk 0:00:52.9]} 30. e4 {[%clk 0:01:14.7]} 30...
Qg4 {[%clk 0:00:49.2]} 31. Re3 {[%clk 0:01:14.5]} 31... Bf4 {[%clk 0:00:46.7]}
32. Rd3 {[%clk 0:01:04]} 32... Bg5 {[%clk 0:00:39]} 33. f3 {[%clk 0:00:58.7]}
33... Qe6 {[%clk 0:00:29.6]} 34. Bf2 {[%clk 0:00:56.7]} 34... Qc4 {[%clk
0:00:29.5]} 35. Rfd1 {[%clk 0:00:56.3]} 35... Kh7 {[%clk 0:00:28.8]} 36. f4
{[%clk 0:00:50.6]} 36... Be7 {[%clk 0:00:20.3]} 37. e5 {[%clk 0:00:50.5]} 37...
c5 {[%clk 0:00:18.9]} 38. Rd7 {[%clk 0:00:48.8]} 38... Bf8 {[%clk 0:00:18.9]}
39. Rxb7 {[%clk 0:00:41.7]} 39... cxb4 {[%clk 0:00:18.5]} 40. axb4 {[%clk
0:00:40.8]} 40... Bxb4 {[%clk 0:00:15.3]} 41. e6 {[%clk 0:00:35.4]} 41... Bc5
{[%clk 0:00:14.5]} 42. e7 {[%clk 0:00:30.1]} 42... Bxf2+ {[%clk 0:00:07.9]} 43.
Kxf2 {[%clk 0:00:29.8]} 43... Qc2+ {[%clk 0:00:08.6]} 44. Ke1 {[%clk 0:00:28.2]}
44... Qe4+ {[%clk 0:00:07.8]} 45. Kd2 {[%clk 0:00:24.6]} 45... Qd5+ {[%clk
0:00:06]} 46. Ke2 {[%clk 0:00:24]} 46... Qg2+ {[%clk 0:00:03.1]} 47. Ke3 {[%clk
0:00:19]} 47... Qxg3+ {[%clk 0:00:03.8]} 48. Ke4 {[%clk 0:00:19.1]} 48... Qg2+
{[%clk 0:00:04.3]} 49. Ke5 {[%clk 0:00:18.2]} 49... Qe2+ {[%clk 0:00:04.9]} 50.
Kf5 {[%clk 0:00:17]} 50... Qc2+ {[%clk 0:00:05.6]} 51. Kg4 {[%clk 0:00:16.1]}
51... Qe2+ {[%clk 0:00:05.4]} 52. Kg3 {[%clk 0:00:15.8]} 52... Qe3+ {[%clk
0:00:05.5]} 53. Kh2 {[%clk 0:00:14.1]} 53... Qxf4+ {[%clk 0:00:05.7]} 54. Kg2
{[%clk 0:00:13.4]} 54... Qe4+ {[%clk 0:00:06.3]} 55. Kf2 {[%clk 0:00:13.3]}
55... Qf4+ {[%clk 0:00:06.7]} 56. Kg2 {[%clk 0:00:13.5]} 56... Qg4+ {[%clk
0:00:06.9]} 57. Kf2 {[%clk 0:00:13.6]} 57... Qf4+ {[%clk 0:00:07.1]} 58. Kg2
{[%clk 0:00:13.9]} 1/2-1/2

[Event "Early-Titled-Tuesday-Blitz-March-26-2024"]
[Site "Chess.com"]
[Date "2024.03.26"]
[Round "6"]
[White "Better_Chess_Faster"]
[Black "Nechitaylo_Nikita"]
[Result "0-1"]
[WhiteElo "2174"]
[BlackElo "2380"]
[TimeControl "180+1"]
[EndTime "9:05:31 PDT"]
[Termination "Nechitaylo_Nikita won by checkmate"]

1. d4 {[%clk 0:03:00.9]} 1... Nf6 {[%clk 0:03:00]} 2. Bg5 {[%clk 0:03:00.8]}
2... Ne4 {[%clk 0:02:59]} 3. Bf4 {[%clk 0:03:00.5]} 3... c5 {[%clk 0:02:59.3]}
4. d5 {[%clk 0:02:57.1]} 4... e6 {[%clk 0:02:55.5]} 5. f3 {[%clk 0:02:55.2]}
5... Qa5+ {[%clk 0:02:55.3]} 6. c3 {[%clk 0:02:53.6]} 6... Nf6 {[%clk
0:02:55.2]} 7. e4 {[%clk 0:02:53]} 7... exd5 {[%clk 0:02:41.1]} 8. exd5 {[%clk
0:02:47.8]} 8... d6 {[%clk 0:02:33.2]} 9. a4 {[%clk 0:02:33.9]} 9... Be7 {[%clk
0:02:29.1]} 10. Na3 {[%clk 0:02:30.8]} 10... O-O {[%clk 0:02:15.9]} 11. Nc4
{[%clk 0:02:28.7]} 11... Qc7 {[%clk 0:02:16.5]} 12. g4 {[%clk 0:02:18.7]} 12...
Re8 {[%clk 0:02:00.9]} 13. Kf2 {[%clk 0:02:18.4]} 13... Nbd7 {[%clk 0:01:44]}
14. h4 {[%clk 0:02:11.9]} 14... b6 {[%clk 0:01:26.9]} 15. h5 {[%clk 0:01:49.8]}
15... Bb7 {[%clk 0:01:26.9]} 16. Ne3 {[%clk 0:01:48.8]} 16... h6 {[%clk
0:00:33.7]} 17. c4 {[%clk 0:01:47.4]} 17... Ne5 {[%clk 0:00:20.6]} 18. Bxe5
{[%clk 0:01:45.1]} 18... dxe5 {[%clk 0:00:21.5]} 19. Nh3 {[%clk 0:01:36.2]}
19... e4 {[%clk 0:00:19.6]} 20. f4 {[%clk 0:01:36.1]} 20... Bd6 {[%clk
0:00:17.1]} 21. Kg3 {[%clk 0:01:33.3]} 21... g5 {[%clk 0:00:10.7]} 22. Ng2
{[%clk 0:01:17.5]} 22... e3 {[%clk 0:00:06.2]} 23. Be2 {[%clk 0:01:13.1]} 23...
gxf4+ {[%clk 0:00:06.3]} 24. Ngxf4 {[%clk 0:01:10.5]} 24... Bxf4+ {[%clk
0:00:05.8]} 25. Nxf4 {[%clk 0:01:09.1]} 25... Ne4+ {[%clk 0:00:05.2]} 26. Kf3
{[%clk 0:01:05.8]} 26... Nf2 {[%clk 0:00:06.1]} 27. Qc2 {[%clk 0:00:57.2]} 27...
Re4 {[%clk 0:00:04.1]} 28. Rh2 {[%clk 0:00:51.4]} 28... Qxf4+ {[%clk 0:00:02.7]}
29. Kg2 {[%clk 0:00:50.8]} 29... Rae8 {[%clk 0:00:01.8]} 30. Rf1 {[%clk
0:00:48.8]} 30... Qe5 {[%clk 0:00:01.5]} 31. Bf3 {[%clk 0:00:43.9]} 31... Nxg4
{[%clk 0:00:01.3]} 32. Bxg4 {[%clk 0:00:28.8]} 32... e2 {[%clk 0:00:01.8]} 33.
Re1 {[%clk 0:00:26.4]} 33... Rxg4+ {[%clk 0:00:02.1]} 34. Kh1 {[%clk 0:00:26.2]}
34... Qe4+ {[%clk 0:00:02.3]} 35. Qxe4 {[%clk 0:00:24.6]} 35... Rgxe4 {[%clk
0:00:03.2]} 36. Rg2+ {[%clk 0:00:13.4]} 36... Kf8 {[%clk 0:00:03.5]} 37. Rf2
{[%clk 0:00:13.6]} 37... Ba6 {[%clk 0:00:03.7]} 38. b3 {[%clk 0:00:12.1]} 38...
Re3 {[%clk 0:00:03.2]} 39. Kg2 {[%clk 0:00:12]} 39... Rxb3 {[%clk 0:00:03.5]}
40. Rfxe2 {[%clk 0:00:11.5]} 40... Rxe2+ {[%clk 0:00:04.4]} 41. Rxe2 {[%clk
0:00:11.4]} 41... Bxc4 {[%clk 0:00:05.3]} 42. Rf2 {[%clk 0:00:11.7]} 42... Bxd5+
{[%clk 0:00:05.7]} 43. Kg1 {[%clk 0:00:10.9]} 43... Rb1+ {[%clk 0:00:05.7]} 44.
Kh2 {[%clk 0:00:08.1]} 44... Rh1+ {[%clk 0:00:06.4]} 45. Kg3 {[%clk 0:00:08.5]}
45... Rxh5 {[%clk 0:00:07.3]} 46. Rf6 {[%clk 0:00:07.9]} 46... Rg5+ {[%clk
0:00:07.2]} 47. Kf4 {[%clk 0:00:07.4]} 47... Kg7 {[%clk 0:00:07.7]} 48. Rd6
{[%clk 0:00:07.2]} 48... Be6 {[%clk 0:00:07.6]} 49. Rc6 {[%clk 0:00:06.9]} 49...
Rg4+ {[%clk 0:00:08.1]} 50. Kf3 {[%clk 0:00:06.7]} 50... Rxa4 {[%clk 0:00:09]}
51. Rc7 {[%clk 0:00:05.5]} 51... h5 {[%clk 0:00:08.3]} 52. Kg3 {[%clk
0:00:05.7]} 52... h4+ {[%clk 0:00:08.9]} 53. Kg2 {[%clk 0:00:05.6]} 53... h3+
{[%clk 0:00:09.7]} 54. Kh2 {[%clk 0:00:05.5]} 54... Ra2+ {[%clk 0:00:10.4]} 55.
Kg1 {[%clk 0:00:04.5]} 55... h2+ {[%clk 0:00:09.1]} 56. Kh1 {[%clk 0:00:03.8]}
56... Bd5# {[%clk 0:00:09.3]} 0-1

[Event "Early-Titled-Tuesday-Blitz-March-26-2024"]
[Site "Chess.com"]
[Date "2024.03.26"]
[Round "6"]
[White "Durarbayli"]
[Black "Hikaru"]
[Result "0-1"]
[WhiteElo "2930"]
[BlackElo "3270"]
[TimeControl "180+1"]
[EndTime "9:05:33 PDT"]
[Termination "Hikaru won on time"]

1. e4 {[%clk 0:03:00.9]} 1... c6 {[%clk 0:02:56.9]} 2. d4 {[%clk 0:03:00.2]}
2... d5 {[%clk 0:02:57]} 3. exd5 {[%clk 0:02:57.3]} 3... Qxd5 {[%clk 0:02:56.8]}
4. c4 {[%clk 0:02:58.2]} 4... Qa5+ {[%clk 0:02:52.8]} 5. Nc3 {[%clk 0:02:57.7]}
5... Nf6 {[%clk 0:02:52.3]} 6. Nf3 {[%clk 0:02:50.8]} 6... g6 {[%clk 0:02:50.4]}
7. h3 {[%clk 0:02:30.5]} 7... Bg7 {[%clk 0:02:50.4]} 8. Bd3 {[%clk 0:02:29.6]}
8... Bf5 {[%clk 0:02:50.3]} 9. O-O {[%clk 0:02:27.9]} 9... Bxd3 {[%clk
0:02:50.6]} 10. Qxd3 {[%clk 0:02:28.8]} 10... O-O {[%clk 0:02:50.9]} 11. Re1
{[%clk 0:02:28.9]} 11... e6 {[%clk 0:02:51.3]} 12. Bf4 {[%clk 0:02:24.1]} 12...
Rd8 {[%clk 0:02:50.4]} 13. Rad1 {[%clk 0:02:23.1]} 13... Nbd7 {[%clk 0:02:49.4]}
14. Bd6 {[%clk 0:02:12.7]} 14... Bf8 {[%clk 0:02:43.8]} 15. b4 {[%clk
0:01:52.6]} 15... Qf5 {[%clk 0:02:43.2]} 16. Qxf5 {[%clk 0:01:45.7]} 16... exf5
{[%clk 0:02:37.3]} 17. Be7 {[%clk 0:01:29.2]} 17... Bxe7 {[%clk 0:02:32.7]} 18.
Rxe7 {[%clk 0:01:30.1]} 18... Kf8 {[%clk 0:02:33.4]} 19. Re3 {[%clk 0:01:19.1]}
19... Nb6 {[%clk 0:02:32.9]} 20. Ne5 {[%clk 0:01:19.5]} 20... Nfd7 {[%clk
0:02:32.9]} 21. c5 {[%clk 0:00:56.8]} 21... Nxe5 {[%clk 0:02:32.6]} 22. Rxe5
{[%clk 0:00:57.7]} 22... Nd7 {[%clk 0:02:25]} 23. Re2 {[%clk 0:00:43.3]} 23...
Nf6 {[%clk 0:02:21.7]} 24. d5 {[%clk 0:00:26.1]} 24... cxd5 {[%clk 0:02:19.7]}
25. Red2 {[%clk 0:00:25.3]} 25... Rd7 {[%clk 0:02:19.6]} 26. f3 {[%clk
0:00:24.4]} 26... Rad8 {[%clk 0:02:07.1]} 27. Rd4 {[%clk 0:00:20.6]} 27... g5
{[%clk 0:01:54.7]} 28. Kf2 {[%clk 0:00:15.1]} 28... h6 {[%clk 0:01:53.3]} 29. h4
{[%clk 0:00:12.5]} 29... Kg7 {[%clk 0:01:53.1]} 30. hxg5 {[%clk 0:00:12.8]}
30... hxg5 {[%clk 0:01:54]} 31. Ke3 {[%clk 0:00:11.2]} 31... f4+ {[%clk
0:01:53.7]} 32. Kd2 {[%clk 0:00:10.7]} 32... Kg6 {[%clk 0:01:54.6]} 33. Re1
{[%clk 0:00:10.8]} 33... Ng8 {[%clk 0:01:54.1]} 34. Kc2 {[%clk 0:00:04.5]} 34...
Ne7 {[%clk 0:01:54]} 35. Kb3 {[%clk 0:00:04.2]} 35... Nf5 {[%clk 0:01:52.5]} 36.
Rd3 {[%clk 0:00:02.9]} 36... d4 {[%clk 0:01:53]} 37. Ne4 {[%clk 0:00:02.6]}
37... Rh8 {[%clk 0:01:37.2]} 38. Re2 {[%clk 0:00:02.5]} 38... Rh1 {[%clk
0:01:36.1]} 39. Red2 {[%clk 0:00:03.2]} 39... Rb1+ {[%clk 0:01:31.6]} 40. Rb2
{[%clk 0:00:03.6]} 40... Rg1 {[%clk 0:01:28]} 41. Rbd2 {[%clk 0:00:03.2]} 41...
Rc7 {[%clk 0:01:27.6]} 42. Nd6 {[%clk 0:00:02.2]} 42... Ne3 {[%clk 0:01:27]} 43.
Rxd4 {[%clk 0:00:02.5]} 43... Nxg2 {[%clk 0:01:27.5]} 44. Re4 {[%clk 0:00:02.2]}
44... Ne1 {[%clk 0:01:25.8]} 45. Rf2 {[%clk 0:00:02.2]} 45... Nd3 {[%clk
0:01:23.2]} 46. Rd2 {[%clk 0:00:02]} 46... Ne1 {[%clk 0:01:08.6]} 47. Rf2 {[%clk
0:00:01.4]} 47... a5 {[%clk 0:01:03.5]} 48. a3 {[%clk 0:00:01.5]} 48... Nd3
{[%clk 0:01:02.1]} 49. Rd2 {[%clk 0:00:01.1]} 49... Ne1 {[%clk 0:01:02.7]} 50.
Rf2 {[%clk 0:00:01.7]} 50... b6 {[%clk 0:01:03.2]} 51. cxb6 {[%clk 0:00:01.7]}
51... Rd7 {[%clk 0:01:03.7]} 52. b7 {[%clk 0:00:01.6]} 52... Rd8 {[%clk
0:01:02.1]} 53. Rd2 {[%clk 0:00:02]} 53... Nxf3 {[%clk 0:01:02.1]} 54. Rd5
{[%clk 0:00:02.6]} 54... axb4 {[%clk 0:00:57.4]} 55. axb4 {[%clk 0:00:03.3]}
55... Rb8 {[%clk 0:00:57.7]} 56. Rc4 {[%clk 0:00:03.1]} 56... g4 {[%clk
0:00:55.4]} 57. Rxf4 {[%clk 0:00:03]} 57... Ng5 {[%clk 0:00:54.1]} 58. Rff5
{[%clk 0:00:02.8]} 58... Ne6 {[%clk 0:00:53.3]} 59. Rxf7 {[%clk 0:00:02.5]}
59... g3 {[%clk 0:00:52.8]} 60. Re7 {[%clk 0:00:03.1]} 60... Re1 {[%clk
0:00:46.6]} 61. Rd2 {[%clk 0:00:02.7]} 61... Nd4+ {[%clk 0:00:29]} 62. Rxd4
{[%clk 0:00:01.9]} 62... Rxe7 {[%clk 0:00:29.9]} 63. Rg4+ {[%clk 0:00:02.4]}
63... Kf6 {[%clk 0:00:30.5]} 64. Rxg3 {[%clk 0:00:03.3]} 64... Ke6 {[%clk
0:00:31.2]} 65. Rd3 {[%clk 0:00:04]} 65... Rd7 {[%clk 0:00:30.8]} 0-1

[Event "Early-Titled-Tuesday-Blitz-March-26-2024"]
[Site "Chess.com"]
[Date "2024.03.26"]
[Round "6"]
[White "Hovik_Hayrapetyan"]
[Black "ketster"]
[Result "1-0"]
[WhiteElo "2815"]
[BlackElo "2583"]
[TimeControl "180+1"]
[EndTime "9:05:34 PDT"]
[Termination "Hovik_Hayrapetyan won on time"]

1. d4 {[%clk 0:03:00.9]} 1... d5 {[%clk 0:02:58.6]} 2. c4 {[%clk 0:03:00.6]}
2... e6 {[%clk 0:02:58.9]} 3. Nc3 {[%clk 0:03:00.2]} 3... c5 {[%clk 0:02:58.9]}
4. cxd5 {[%clk 0:02:58.8]} 4... cxd4 {[%clk 0:02:59]} 5. Qxd4 {[%clk 0:02:57.6]}
5... Nc6 {[%clk 0:02:58.1]} 6. Qd1 {[%clk 0:02:49.3]} 6... exd5 {[%clk
0:02:58.1]} 7. e3 {[%clk 0:02:47.9]} 7... Nf6 {[%clk 0:02:56]} 8. Nf3 {[%clk
0:02:47.7]} 8... Bb4 {[%clk 0:02:53.8]} 9. Be2 {[%clk 0:02:45.7]} 9... Ne4
{[%clk 0:02:49]} 10. Qb3 {[%clk 0:02:40.9]} 10... Qa5 {[%clk 0:02:42.5]} 11. O-O
{[%clk 0:02:36.8]} 11... Be6 {[%clk 0:02:24.7]} 12. Nb5 {[%clk 0:02:24.5]} 12...
O-O {[%clk 0:02:16.1]} 13. Nbd4 {[%clk 0:02:24.1]} 13... Rac8 {[%clk 0:01:36.3]}
14. a3 {[%clk 0:02:20]} 14... Nxd4 {[%clk 0:01:25.3]} 15. Nxd4 {[%clk
0:02:19.7]} 15... Bc5 {[%clk 0:01:15.6]} 16. Qxb7 {[%clk 0:02:11.3]} 16... Bxd4
{[%clk 0:01:07]} 17. exd4 {[%clk 0:02:12.2]} 17... Rc2 {[%clk 0:01:07.2]} 18.
Bd3 {[%clk 0:02:08.1]} 18... Rc7 {[%clk 0:00:55.9]} 19. Qa6 {[%clk 0:01:59.9]}
19... Qxa6 {[%clk 0:00:44.4]} 20. Bxa6 {[%clk 0:02:00.8]} 20... Rc6 {[%clk
0:00:40.1]} 21. Bb5 {[%clk 0:01:56.2]} 21... Rb6 {[%clk 0:00:36.6]} 22. Ba4
{[%clk 0:01:53.8]} 22... Rc8 {[%clk 0:00:33]} 23. f3 {[%clk 0:01:51.2]} 23...
Nd6 {[%clk 0:00:29.1]} 24. Rf2 {[%clk 0:01:48.4]} 24... Nf5 {[%clk 0:00:25.4]}
25. b4 {[%clk 0:01:45.5]} 25... Rb7 {[%clk 0:00:15.4]} 26. Bb2 {[%clk
0:01:40.2]} 26... Rbc7 {[%clk 0:00:14.9]} 27. Re2 {[%clk 0:01:31.7]} 27... h5
{[%clk 0:00:12]} 28. Kf2 {[%clk 0:01:31.1]} 28... Nd6 {[%clk 0:00:11.7]} 29.
Rae1 {[%clk 0:01:22.2]} 29... Nc4 {[%clk 0:00:11.7]} 30. Bb5 {[%clk 0:01:12.5]}
30... Nd6 {[%clk 0:00:07.5]} 31. Ba6 {[%clk 0:01:11]} 31... Rb8 {[%clk
0:00:06.8]} 32. Bc1 {[%clk 0:01:08.4]} 32... Rb6 {[%clk 0:00:06.1]} 33. Bd3
{[%clk 0:01:08]} 33... Rc3 {[%clk 0:00:04.4]} 34. Re3 {[%clk 0:01:00.9]} 34...
Rbc6 {[%clk 0:00:03.3]} 35. Bd2 {[%clk 0:00:56.2]} 35... Kf8 {[%clk 0:00:01.6]}
36. Bxc3 {[%clk 0:00:55.5]} 36... Rxc3 {[%clk 0:00:02.5]} 37. Bf1 {[%clk
0:00:52.4]} 37... Rc2+ {[%clk 0:00:02.6]} 38. R1e2 {[%clk 0:00:50.4]} 38... Rc1
{[%clk 0:00:02.9]} 39. Re1 {[%clk 0:00:44.3]} 39... Rc2+ {[%clk 0:00:03]} 40.
R3e2 {[%clk 0:00:41.6]} 40... Rc3 {[%clk 0:00:03.5]} 41. a4 {[%clk 0:00:41.7]}
41... Rb3 {[%clk 0:00:03.2]} 42. b5 {[%clk 0:00:40.7]} 42... Ra3 {[%clk
0:00:03.6]} 43. Re5 {[%clk 0:00:20.4]} 43... Rxa4 {[%clk 0:00:03.6]} 44. Rxh5
{[%clk 0:00:20.2]} 44... Rxd4 {[%clk 0:00:03.3]} 45. Ra1 {[%clk 0:00:16.6]}
45... Rb4 {[%clk 0:00:02.4]} 46. Rxa7 {[%clk 0:00:14.8]} 46... g6 {[%clk
0:00:02.9]} 47. Rh8+ {[%clk 0:00:13.8]} 47... Kg7 {[%clk 0:00:03.4]} 48. Rd8
{[%clk 0:00:14.7]} 48... Nxb5 {[%clk 0:00:02.8]} 49. Rb7 {[%clk 0:00:11.4]}
49... Rb2+ {[%clk 0:00:02.8]} 50. Kg3 {[%clk 0:00:11.5]} 50... Rb1 {[%clk
0:00:03.3]} 51. Bxb5 {[%clk 0:00:11.1]} 1-0

[Event "Early-Titled-Tuesday-Blitz-March-26-2024"]
[Site "Chess.com"]
[Date "2024.03.26"]
[Round "6"]
[White "atalz0"]
[Black "lukazz029"]
[Result "0-1"]
[WhiteElo "2361"]
[BlackElo "2023"]
[TimeControl "180+1"]
[EndTime "9:05:36 PDT"]
[Termination "lukazz029 won on time"]

1. d4 {[%clk 0:03:00.9]} 1... Nf6 {[%clk 0:02:59.6]} 2. c4 {[%clk 0:03:00.8]}
2... g6 {[%clk 0:02:57.5]} 3. f3 {[%clk 0:03:01.1]} 3... Bg7 {[%clk 0:02:56.4]}
4. e4 {[%clk 0:03:00.9]} 4... d6 {[%clk 0:02:57]} 5. Nc3 {[%clk 0:03:01.3]} 5...
O-O {[%clk 0:02:57.4]} 6. Be3 {[%clk 0:03:01.9]} 6... e5 {[%clk 0:02:50.9]} 7.
d5 {[%clk 0:03:01.6]} 7... c6 {[%clk 0:02:48.6]} 8. Bd3 {[%clk 0:03:01.1]} 8...
cxd5 {[%clk 0:02:48.6]} 9. cxd5 {[%clk 0:03:02]} 9... a6 {[%clk 0:02:48.3]} 10.
Nge2 {[%clk 0:03:02.1]} 10... b5 {[%clk 0:02:47.9]} 11. O-O {[%clk 0:03:02.4]}
11... Nbd7 {[%clk 0:02:47.1]} 12. b4 {[%clk 0:03:01.6]} 12... Nh5 {[%clk
0:02:46.3]} 13. a4 {[%clk 0:03:01.3]} 13... bxa4 {[%clk 0:02:34.6]} 14. Qxa4
{[%clk 0:02:57.9]} 14... Nf4 {[%clk 0:02:30.6]} 15. Qd1 {[%clk 0:02:28.1]} 15...
Qg5 {[%clk 0:02:18.8]} 16. Nxf4 {[%clk 0:01:51]} 16... exf4 {[%clk 0:02:17.4]}
17. Bd2 {[%clk 0:01:51]} 17... Ne5 {[%clk 0:02:16.7]} 18. Be2 {[%clk 0:01:50.4]}
18... f5 {[%clk 0:01:44.2]} 19. Kh1 {[%clk 0:01:46.1]} 19... Qh5 {[%clk
0:01:06.6]} 20. b5 {[%clk 0:01:38]} 20... g5 {[%clk 0:01:04.1]} 21. bxa6 {[%clk
0:01:17.9]} 21... fxe4 {[%clk 0:00:56.8]} 22. Nxe4 {[%clk 0:01:13.1]} 22... g4
{[%clk 0:00:50.6]} 23. fxg4 {[%clk 0:00:49.7]} 23... Bxg4 {[%clk 0:00:49.6]} 24.
Bxg4 {[%clk 0:00:23.9]} 24... Nxg4 {[%clk 0:00:47.7]} 25. h3 {[%clk 0:00:24.2]}
25... f3 {[%clk 0:00:35.1]} 26. Rxf3 {[%clk 0:00:18.5]} 26... Rxf3 {[%clk
0:00:34.6]} 27. Qxf3 {[%clk 0:00:17.6]} 27... Bxa1 {[%clk 0:00:34.4]} 28. Qxg4+
{[%clk 0:00:14.6]} 28... Qxg4 {[%clk 0:00:34.1]} 29. hxg4 {[%clk 0:00:15.5]}
29... Be5 {[%clk 0:00:33.7]} 30. g5 {[%clk 0:00:13.2]} 30... Rxa6 {[%clk
0:00:32.8]} 31. g4 {[%clk 0:00:11.5]} 31... Ra4 {[%clk 0:00:32.6]} 32. Nf6+
{[%clk 0:00:10.9]} 32... Bxf6 {[%clk 0:00:31.5]} 33. gxf6 {[%clk 0:00:11.8]}
33... Kf7 {[%clk 0:00:31.3]} 34. g5 {[%clk 0:00:11.2]} 34... Rd4 {[%clk
0:00:30.7]} 35. Be3 {[%clk 0:00:11]} 35... Rxd5 {[%clk 0:00:30.7]} 36. Kg2
{[%clk 0:00:11.9]} 36... Rd3 {[%clk 0:00:28.9]} 37. Kf3 {[%clk 0:00:11.7]} 37...
Ke6 {[%clk 0:00:25.5]} 38. Ke4 {[%clk 0:00:11.7]} 38... Rd1 {[%clk 0:00:25.6]}
39. Bf4 {[%clk 0:00:07.1]} 39... d5+ {[%clk 0:00:25.3]} 40. Kf3 {[%clk
0:00:06.3]} 40... Ra1 {[%clk 0:00:23.7]} 41. Be3 {[%clk 0:00:05]} 41... Ra3
{[%clk 0:00:23.6]} 42. Kf4 {[%clk 0:00:04.6]} 42... Ra4+ {[%clk 0:00:21.9]} 43.
Kf3 {[%clk 0:00:04.9]} 43... Re4 {[%clk 0:00:20.6]} 44. Bd2 {[%clk 0:00:04.7]}
44... Kf7 {[%clk 0:00:19.9]} 45. Be3 {[%clk 0:00:03.9]} 45... Kg6 {[%clk
0:00:19.9]} 46. Bd2 {[%clk 0:00:04.2]} 46... Re8 {[%clk 0:00:19.9]} 47. Be3
{[%clk 0:00:03.6]} 47... h6 {[%clk 0:00:18.7]} 48. gxh6 {[%clk 0:00:03.5]} 48...
Kxf6 {[%clk 0:00:18.7]} 49. Kf4 {[%clk 0:00:01.7]} 49... Kg6 {[%clk 0:00:17.9]}
50. Kf3 {[%clk 0:00:01.3]} 50... Re4 {[%clk 0:00:17.3]} 51. Bd2 {[%clk
0:00:01.3]} 51... Re7 {[%clk 0:00:15.9]} 52. Be3 {[%clk 0:00:01.5]} 52... Kf5
{[%clk 0:00:15.1]} 53. Bd2 {[%clk 0:00:01.9]} 53... Rb7 {[%clk 0:00:14.3]} 54.
Be3 {[%clk 0:00:01.9]} 54... Kg6 {[%clk 0:00:12.9]} 55. Bd2 {[%clk 0:00:01.8]}
55... Rb3+ {[%clk 0:00:12.4]} 56. Kf4 {[%clk 0:00:01.2]} 56... Rd3 {[%clk
0:00:11.9]} 0-1